[Event "American Cup Women Champions 2024"]
[Site "Saint Louis"]
[Date "2024.03.12"]
[Round "1.2"]
[White "Paikidze, Nazi"]
[Black "Zatonskih, Anna"]
[Result "1-0"]
[ECO "E07"]
[WhiteElo "2319"]
[BlackElo "2348"]
[Annotator "TA"]
[PlyCount "79"]
[EventDate "2024.03.11"]
[EventType "k.o."]
[EventCountry "USA"]
[SourceTitle "playchess.com"]
[Source "ChessBase"]
[SourceQuality "1"]
[TimeControl "900+10"]

{[%evp 15,79,18,43,13,24,0,4,0,15,-10,20,-54,-44,-52,10,35,31,32,83,75,99,89,91,91,93,39,18,9,0,0,0,-51,23,13,30,19,25,5,16,0,0,0,0,-13,0,-16,-16,-157,-148,-146,-149,-131,-136,-138,-141,-122,-26,-30,0,0,0,0,21,31,29997,29998]} 1. d4 {[%emt 0:00:03]} d5 {[%emt 0:00:01]} 2. c4 {[%emt 0:00:02]} e6 {[%emt 0:00:01]} 3. Nc3 {[%emt 0:00:03]} Nf6 {[%emt 0:00:23]} 4. g3 {[%emt 0:00:01]} dxc4 {[%emt 0:02:09]} 5. Bg2 {[%emt 0:00:11]} Nbd7 {[%emt 0:00:10]} 6. Nf3 {[%emt 0:01:27]} Nb6 {[%emt 0:01:54]} 7. O-O {[%emt 0:00:03]} Be7 {[%emt 0:00:00]} 8. e4 {[%emt 0:00:54]} O-O {[%emt 0:00:07]} 9. Qe2 {[%emt 0:00:17]} c5 {[%emt 0:01:35]} 10. Rd1 {[%emt 0:00:19]} cxd4 {[%emt 0:00:19]} 11. Rxd4 {[%emt 0:01:49] The position is equal.} Qe8 {[%emt 0:01:51]} 12. Bf4 {[%emt 0:00:51]} Bc5 {[%emt 0:00:32]} 13. Rd2 {[%emt 0:00:24]} ({White should try} 13. Rdd1 $11) 13... Ng4 $15 {[%emt 0:03:00][%cal Oe6e5] White must now prevent ...e5!} 14. Bd6 $1 {[%emt 0:00:17]} Bxd6 {[%emt 0:00:04]} (14... Bxf2+ $15 15. Kh1 Be3) 15. Rxd6 $11 {[%emt 0:00:02]} e5 {[%emt 0:00:22]} 16. a4 {[%emt 0:01:41]} Be6 {[%emt 0:00:25]} (16... Qe7 $14 17. Rad1 Be6) 17. Ng5 $16 {[%emt 0:02:04] aiming for Nxe6. White is more active.} Qe7 {[%emt 0:01:25][%cal Oe7g5] [#]} 18. Rxe6 $1 {[%emt 0:01:03]} Qxg5 {[%emt 0:00:05]} 19. Rd6 {[%emt 0:00:11]} (19. h4 {keeps more tension.} Qd8 20. Rd1 Qc7 21. Rxb6 Qxb6 22. Nd5) 19... Nf6 {[%emt 0:01:28]} 20. Rad1 {[%emt 0:00:33]} ({Better is} 20. h4 $16 Qg4 21. Qxg4 Nxg4 22. a5) 20... Ne8 $1 $14 {[%emt 0:00:36]} 21. h4 {[%emt 0:00:45]} Qe7 {[%emt 0:00:04]} 22. R6d2 {[%emt 0:00:05] a5 would now be deadly.} Qb4 {[%emt 0:00:19]} 23. Nd5 {[%emt 0:01:13] Dodges Nc7} (23. Qh5 $11) 23... Nxd5 {[%emt 0:00:09]} (23... Qxa4 $15 24. Ne3 (24. Ne7+ Kh8 $11) 24... Qc6) 24. Rxd5 $11 {[%emt 0:00:34]} ({Reject} 24. exd5 Nd6 25. Qxe5 a5 $15) 24... Qxa4 {[%emt 0:00:58]} 25. Rxe5 {[%emt 0:00:03]} Qb4 {[%emt 0:00:28] Prevents Re7} 26. Red5 {[%emt 0:00:44][%mdl 1024] White has compensation.} Nc7 {[%emt 0:00:33]} 27. R5d4 {[%emt 0:00:16]} b5 {[%emt 0:00:02]} 28. e5 {[%emt 0:00:12]} Rae8 {[%emt 0:00:21]} 29. Kh2 {[%emt 0:01:57]} Ne6 {[%emt 0:00:11]} 30. Rd5 {[%emt 0:00:17]} Nc5 {[%emt 0:00:23]} 31. Qd2 {[%emt 0:00:32]} (31. f4 $11 {remains equal.}) 31... Qxd2 $17 {[%emt 0:00:09]} 32. R1xd2 {[%emt 0:00:01]} Rc8 {[%emt 0:00:03]} 33. f4 {[%emt 0:00:11]} a5 {[%emt 0:00:03]} 34. f5 {[%emt 0:00:20]} Rfe8 {[%emt 0:00:04]} 35. f6 {[%emt 0:00:09]} gxf6 {[%emt 0:00:17]} (35... Nb3 $17 36. Rd1 b4) 36. exf6 $11 {[%emt 0:00:02]} b4 {[%emt 0:00:05] Hoping for ...a4.} 37. Bh3 $1 {[%emt 0:00:08]} Rc7 {[%emt 0:00:03] Threatens to win with ...Ne4.} 38. Rg5+ {[%emt 0:00:30]} Kf8 {[%emt 0:00:13] Strongly threatening ...Ne4.} 39. Bf5 {[%emt 0:00:22]} c3 $2 {[%emt 0:00:28][%mdl 8192] [#]} (39... Ne6 $14 40. Rh5 Rb8) 40. Bxh7 $1 {[%emt 0:00:04] Weighted Error Value: White=0.20 (precise) /Black=0.39.  Loses game:     	---       	Black=1      Mistake:       	White=4     	Black=4      Inaccurate:     	---       	Black=2      OK:         	White=13    	Black=8      Best:        	---       	Black=3      Strong:       	White=3     	Black=1} 1-0

[Event "American Cup Women Champions 2024"]
[Site "Saint Louis"]
[Date "2024.03.12"]
[Round "1.2"]
[White "Abrahamyan, Tatev"]
[Black "Lee, Alice"]
[Result "0-1"]
[ECO "C43"]
[WhiteElo "2308"]
[BlackElo "2356"]
[Annotator "TA"]
[PlyCount "56"]
[EventDate "2024.03.11"]
[EventType "k.o."]
[EventCountry "USA"]
[SourceTitle "playchess.com"]
[Source "ChessBase"]
[SourceQuality "1"]
[TimeControl "900+10"]

{[%evp 9,56,6,19,17,18,8,8,16,18,13,11,6,20,13,23,11,6,13,12,17,16,7,19,19,24,13,19,20,19,-55,0,-134,-139,-333,-366,-482,-460,-465,-476,-569,-519,-522,-523,-523,-480,-523,-508,-864,-840]} 1. e4 {[%emt 0:00:02]} e5 {[%emt 0:00:01]} 2. Nf3 {[%emt 0:00:02]} Nf6 {[%emt 0:00:03]} 3. d4 {[%emt 0:00:02]} Nxe4 {[%emt 0:00:02]} 4. dxe5 {[%emt 0:00:02]} d5 {[%emt 0:00:06]} 5. Nbd2 {[%emt 0:00:04]} Nxd2 {[%emt 0:00:05]} 6. Bxd2 {[%emt 0:00:02]} c5 {[%emt 0:00:16]} 7. c3 {[%emt 0:00:07]} Nc6 {[%emt 0:00:10]} 8. Bd3 {[%emt 0:00:02] The position is equal.} Be7 {[%emt 0:00:29]} 9. O-O {[%emt 0:00:07]} Bg4 {[%emt 0:01:03]} 10. Re1 {[%emt 0:00:02]} Qd7 {[%emt 0:02:14]} 11. h3 {[%emt 0:00:06]} Bf5 {[%emt 0:00:15]} 12. Qc2 {[%emt 0:05:13]} Bxd3 {[%emt 0:00:02]} 13. Qxd3 {[%emt 0:00:01]} O-O {[%emt 0:01:21]} 14. Ng5 {[%emt 0:01:19]} Bxg5 {[%emt 0:00:30]} 15. Bxg5 {[%emt 0:00:02]} Rfe8 {[%emt 0:00:51]} 16. f4 {[%emt 0:00:24]} d4 {[%emt 0:02:49]} 17. Rad1 {[%emt 0:01:02][%cal Ob2b4]} Qd5 {[%emt 0:00:52]} 18. Qg3 {[%emt 0:04:44]} Kh8 $1 {[%emt 0:00:24]} 19. Qh4 {[%emt 0:00:59]} ({Better is} 19. a3 $11) 19... Qe6 {[%emt 0:02:26]} (19... d3 $15) 20. g4 {[%emt 0:00:43]} (20. a3 $11) 20... Qxa2 $17 {[%emt 0:00:36]} 21. Qg3 $2 {[%emt 0:01:52] [#] White does not recover from this.} (21. Qf2 $17 {might work better.}) 21... Qxb2 $19 {[%emt 0:00:19]} 22. f5 {[%emt 0:00:05]} Qxc3 {[%emt 0:00:50] Black is clearly winning.} 23. Rd3 {[%emt 0:00:01]} Qc4 {[%emt 0:00:18]} 24. f6 {[%emt 0:00:33] [#]} Nxe5 $1 {[%emt 0:00:34]} 25. fxg7+ {[%emt 0:00:16]} Kg8 $1 {[%emt 0:00:01]} 26. Rdd1 {[%emt 0:00:37]} Qc3 {[%emt 0:01:05]} 27. Qxc3 {[%emt 0:00:43]} dxc3 {[%emt 0:00:02]} 28. Kf2 {[%emt 0:00:01] Repels Nf3} (28. Re3 $142 c4 (28... Kxg7 $2 29. Rf1 $19) 29. Rxc3) 28... c4 {[%emt 0:00:30] Weighted Error Value: White=0.65/Black=0.09 (flawless) .  Loses game:     	White=1     	---        Mistake:       	White=3     	Black=1      Inaccurate:     	White=1     	---        OK:         	White=8     	Black=12     Best:        	---       	Black=1      Strong:       	---       	Black=2} 0-1

[Event "American Cup Women Champions 2024"]
[Site "Saint Louis"]
[Date "2024.03.12"]
[Round "1.2"]
[White "Yu, Jennifer"]
[Black "Tokhirjonova, Gulrukhbegim"]
[Result "0-1"]
[ECO "D45"]
[WhiteElo "2279"]
[BlackElo "2365"]
[Annotator "RC"]
[PlyCount "98"]
[EventDate "2024.03.11"]
[EventType "k.o."]
[EventCountry "USA"]
[SourceTitle "playchess.com"]
[Source "ChessBase"]
[SourceQuality "1"]
[TimeControl "900+10"]

1. d4 {[%emt 0:00:01]} d5 {[%emt 0:00:04]} 2. c4 {[%emt 0:00:08]} e6 {[%emt 0:00:02]} 3. Nc3 {[%emt 0:00:02]} c6 {[%emt 0:00:04]} 4. e3 {[%emt 0:00:25]} Nf6 {[%emt 0:00:05]} 5. Nf3 {[%emt 0:01:29]} Nbd7 {[%emt 0:00:11]} 6. b3 {[%emt 0:00:28]} Bb4 {[%emt 0:00:05]} 7. Bd2 {[%emt 0:00:11]} O-O {[%emt 0:00:09]} 8. Bd3 {[%emt 0:00:54]} dxc4 {[%emt 0:01:14]} 9. bxc4 {[%emt 0:00:23]} e5 {[%emt 0:00:14]} 10. dxe5 {[%emt 0:00:56]} Ng4 {[%emt 0:00:16]} 11. Qb1 {[%emt 0:04:45]} Qa5 {[%emt 0:02:14]} 12. Bxh7+ {[%emt 0:01:12]} Kh8 {[%emt 0:00:03]} 13. Qc2 {[%emt 0:00:16]} g6 {[%emt 0:04:37]} 14. Bxg6 {[%emt 0:02:24]} fxg6 {[%emt 0:00:03]} 15. a3 {[%emt 0:01:28]} Ndxe5 {[%emt 0:01:38]} 16. Nxe5 {[%emt 0:01:44]} Nxe5 {[%emt 0:00:21]} 17. O-O {[%emt 0:00:05]} Be7 {[%emt 0:03:01]} 18. Nd5 {[%emt 0:00:35]} Qd8 {[%emt 0:00:06]} 19. Nxe7 {[%emt 0:00:08]} Qxe7 {[%emt 0:00:02]} 20. f4 {[%emt 0:00:07]} Ng4 {[%emt 0:02:11]} 21. Qxg6 {[%emt 0:00:23]} Qg7 {[%emt 0:00:04]} 22. Qc2 {[%emt 0:00:33]} Bf5 {[%emt 0:00:13]} 23. Qc3 {[%emt 0:00:11]} Qxc3 {[%emt 0:01:04]} 24. Bxc3+ {[%emt 0:00:01]} Kg8 {[%emt 0:00:03]} 25. Rf3 {[%emt 0:00:02]} Nf6 {[%emt 0:00:29]} 26. Rg3+ {[%emt 0:00:21]} Kf7 {[%emt 0:00:02]} 27. Rg5 {[%emt 0:00:07]} Be4 {[%emt 0:00:34]} 28. Rd1 {[%emt 0:00:13]} Rad8 {[%emt 0:00:04]} 29. Rxd8 {[%emt 0:00:06]} Rxd8 {[%emt 0:00:03]} 30. Bd4 {[%emt 0:00:01]} b6 {[%emt 0:00:06]} 31. c5 {[%emt 0:00:04]} b5 {[%emt 0:00:19]} 32. g4 {[%emt 0:00:21]} a5 {[%emt 0:00:25]} 33. f5 {[%emt 0:00:17]} b4 {[%emt 0:00:14]} 34. axb4 {[%emt 0:00:02]} axb4 {[%emt 0:00:01]} 35. Rg6 {[%emt 0:00:09]} Rxd4 {[%emt 0:00:02]} 36. exd4 {[%emt 0:00:01]} b3 {[%emt 0:00:02]} 37. g5 {[%emt 0:00:01]} Ng8 {[%emt 0:00:33]} 38. Rd6 {[%emt 0:00:07]} b2 {[%emt 0:00:06]} 39. Rd7+ {[%emt 0:00:12]} Ne7 {[%emt 0:00:02]} 40. Rb7 {[%emt 0:00:05]} b1=Q+ {[%emt 0:00:08]} 41. Rxb1 {[%emt 0:00:04]} Bxb1 {[%emt 0:00:01]} 42. f6 {[%emt 0:00:15]} Nf5 {[%emt 0:00:10]} 43. d5 {[%emt 0:00:27]} cxd5 {[%emt 0:00:02]} 44. c6 {[%emt 0:00:01]} d4 {[%emt 0:00:15]} 45. Kf2 {[%emt 0:00:16]} Nd6 {[%emt 0:00:28]} 46. h4 {[%emt 0:00:18]} Kg6 {[%emt 0:00:07]} 47. c7 {[%emt 0:00:05]} Bf5 {[%emt 0:00:05]} 48. Kf3 {[%emt 0:00:05]} d3 {[%emt 0:00:27]} 49. Kf2 {[%emt 0:00:38]} d2 {[%emt 0:00:35]} 0-1

[Event "American Cup Women Champions 2024"]
[Site "Saint Louis"]
[Date "2024.03.12"]
[Round "1.2"]
[White "Tang, Zoey"]
[Black "Krush, Irina"]
[Result "0-1"]
[ECO "E71"]
[WhiteElo "2253"]
[BlackElo "2421"]
[Annotator "TA"]
[PlyCount "102"]
[EventDate "2024.03.11"]
[EventType "k.o."]
[EventCountry "USA"]
[SourceTitle "playchess.com"]
[Source "ChessBase"]
[SourceQuality "1"]
[TimeControl "900+10"]

{[%evp 11,102,31,49,24,38,32,25,42,61,65,57,66,75,81,72,76,78,72,73,65,130,-55,-73,-69,-10,-38,23,-18,-15,-14,-18,-20,-14,-15,-10,-20,2,0,0,0,0,-26,-22,-33,-29,-27,-24,-33,-10,-58,-66,-529,-553,-672,-629,-627,-581,-679,-679,-754,-731,-764,-676,-794,-689,-810,-689,-973,-994,-975,-966,-1071,-1021,-1504,-1489,-2365,-2511,-5081,-3226,-2616,-2357,-29977,-29978,-29985,-29986,-29986,-29987,-29990,-29988,-29988,-29989,-29989,-29990]} 1. d4 {[%emt 0:00:03]} Nf6 {[%emt 0:00:02]} 2. c4 {[%emt 0:00:01]} g6 {[%emt 0:00:02]} 3. Nc3 {[%emt 0:00:10]} Bg7 {[%emt 0:00:02]} 4. e4 {[%emt 0:00:02]} d6 {[%emt 0:00:02]} 5. h3 {[%emt 0:01:14]} O-O {[%emt 0:00:05]} 6. Be3 {[%emt 0:00:02]} Na6 {[%emt 0:00:02]} 7. Be2 {[%emt 0:01:12]} e5 {[%emt 0:00:29]} 8. d5 {[%emt 0:00:09]} Nc5 {[%emt 0:01:40]} 9. Qc2 {[%emt 0:00:11] White has an edge.} a5 {[%emt 0:00:02]} 10. g4 {[%emt 0:00:44][%cal Bg2g4,Bg4g5][%mdl 32]} c6 {[%emt 0:00:28]} 11. g5 {[%emt 0:02:27]} Nh5 {[%emt 0:02:41]} 12. Bxh5 {[%emt 0:00:37]} gxh5 {[%emt 0:00:02]} 13. O-O-O {[%emt 0:00:37]} f5 {[%emt 0:03:40]} 14. gxf6 {[%emt 0:01:02]} Qxf6 {[%emt 0:00:09]} 15. Nge2 {[%emt 0:00:37]} Bh6 {[%emt 0:01:08] [#] Against f4} (15... Kh8 $14) 16. Kb1 $2 {[%emt 0:01:32]} (16. f4 $1 $16) 16... Bxe3 $15 {[%emt 0:00:23]} 17. fxe3 {[%emt 0:00:02]} Bd7 {[%emt 0:01:29]} (17... Kh8 $15) 18. Ng3 {[%emt 0:01:05]} h4 {[%emt 0:00:34]} (18... Kh8 $15 19. Rhg1 (19. Nxh5 $2 {too greedy.} Qh4 $19) 19... Rad8) 19. Rdf1 {[%emt 0:00:28]} Qh6 {[%emt 0:00:25]} 20. Nf5 {[%emt 0:01:04]} Bxf5 {[%emt 0:00:12]} 21. exf5 {[%emt 0:00:03]} Qxe3 {[%emt 0:00:03]} 22. f6 {[%emt 0:00:43]} Kh8 {[%emt 0:01:35] Active counter play!} 23. f7 {[%emt 0:01:06]} Qd3 {[%emt 0:01:25]} (23... Rad8 {with more complications.} 24. dxc6 bxc6 25. Qg2 Rd7) 24. Qxd3 {[%emt 0:00:16]} Nxd3 {[%emt 0:00:01]} 25. Ne4 {[%emt 0:00:02]} cxd5 {[%emt 0:00:15]} 26. cxd5 {[%emt 0:00:19]} Nf4 {[%emt 0:00:23]} 27. Nxd6 {[%emt 0:00:27]} Rad8 {[%emt 0:00:09]} 28. Nc4 {[%emt 0:00:47]} Rxd5 {[%emt 0:00:28]} 29. Nxe5 {[%emt 0:00:30]} Ne2 {[%emt 0:00:46]} 30. Ng4 {[%emt 0:02:04]} ({Don't go for} 30. Rf5 $2 Ng3 $19) (30. Nf3 $11) 30... Ng3 {[%emt 0:00:03][%csl LRf1,LRh1]} 31. Nf6 $2 {[%emt 0:00:26][%mdl 8192] [#] This costs White the game.} (31. Rd1 $15 Rxd1+ 32. Rxd1 Rxf7 33. Rd8+ Kg7 34. a4) 31... Rdd8 $1 $19 {[%emt 0:00:58]} (31... Rxf7 32. Nxd5 Nxf1 (32... Rxf1+ $2 33. Rxf1 Nxf1 34. Kc2 $19) 33. a3 $19) 32. Rd1 {[%emt 0:00:01] Strongly threatening Rxd8.} Nxh1 {[%emt 0:00:03]} 33. Rxh1 {[%emt 0:00:25]} Rxf7 {[%emt 0:00:01][%mdl 4096] Endgame. KRR-KRN} 34. Ne4 {[%emt 0:00:05]} Re7 {[%emt 0:00:17]} 35. Nc3 {[%emt 0:00:08]} Rd3 {[%emt 0:00:12]} 36. Kc2 {[%emt 0:00:05]} Rg3 {[%emt 0:00:03]} 37. a4 {[%emt 0:00:10]} Kg7 {[%emt 0:00:12] Threatens to win with ...Ree3.} 38. Kb1 {[%emt 0:00:13]} Kg6 {[%emt 0:00:18]} 39. Rd1 {[%emt 0:00:19]} Rxh3 {[%emt 0:00:05]} 40. Nd5 {[%emt 0:00:03]} Re4 {[%emt 0:00:13]} 41. Rf1 {[%emt 0:00:10]} Rh2 {[%emt 0:00:18]} 42. Rf6+ {[%emt 0:00:03]} Kg5 {[%emt 0:00:04]} 43. Rb6 {[%emt 0:00:04]} h3 {[%emt 0:00:15]} 44. Rxb7 {[%emt 0:00:07]} h5 {[%emt 0:00:09]} 45. Rg7+ {[%emt 0:00:09]} Kf5 {[%emt 0:00:04][%cal Oh2g2] ...Rg2! is the strong threat.} 46. Rg1 {[%emt 0:00:12]} Rg2 {[%emt 0:00:11] Black mates.} 47. Rf1+ {[%emt 0:00:02]} Ke5 {[%emt 0:00:15]} 48. Nc3 {[%emt 0:00:06] [#]} h2 $1 {[%emt 0:00:16]} 49. Nxe4 {[%emt 0:00:03]} (49. Ka2 Re3) 49... Kxe4 {[%emt 0:00:06]} 50. Re1+ {[%emt 0:00:05]} Kf3 {[%emt 0:00:04]} 51. Ka2 {[%emt 0:00:05]} Rg1 {[%emt 0:00:04] Weighted Error Value: White=0.61/Black=0.19 (very precise) .  Loses game:     	White=1     	---        Mistake:       	White=2     	Black=3      Inaccurate:     	White=3     	---        OK:         	White=13    	Black=10     Best:        	---       	Black=6      Strong:       	---       	Black=1} 0-1

[Event "American Cup Women Champions 2024"]
[Site "Saint Louis"]
[Date "2024.03.13"]
[Round "1.3"]
[White "Paikidze, Nazi"]
[Black "Zatonskih, Anna"]
[Result "1/2-1/2"]
[ECO "E06"]
[WhiteElo "2319"]
[BlackElo "2348"]
[Annotator "TA"]
[PlyCount "127"]
[EventDate "2024.03.11"]
[EventType "k.o."]
[EventCountry "USA"]
[SourceTitle "playchess.com"]
[Source "ChessBase"]
[SourceQuality "1"]
[TimeControl "5400+30"]

{[%evp 45,127,-135,-120,-126,-62,-70,-69,-82,-21,-26,0,0,0,0,0,0,0,0,20,8,10,8,8,16,31,30,43,40,85,96,87,93,115,2,7,3,8,0,0,0,0,0,5,0,0,0,0,0,0,0,0,0,0,0,0,0,0,0,0,0,0,0,0,0,0,0,0,0,0,0,0,0,0,0,0,0,0,0,0,0,0,0,0,0]} 1. d4 {[%emt 0:00:03]} d5 {[%emt 0:00:13]} 2. c4 {[%emt 0:00:06]} e6 {[%emt 0:00:03]} 3. Nc3 {[%emt 0:00:06]} Nf6 {[%emt 0:00:10]} 4. g3 {[%emt 0:00:06]} Be7 {[%emt 0:01:09]} 5. Bg2 {[%emt 0:00:06]} O-O {[%emt 0:00:50]} 6. Nf3 {[%emt 0:00:05]} a5 {[%emt 0:03:17] E06: Closed Catalan: Early deviations.} 7. O-O {[%emt 0:01:31]} c6 {[%emt 0:00:59]} 8. Ne5 {[%emt 0:03:24]} Nfd7 {[%emt 0:03:36]} 9. Nxd7 {[%emt 0:04:52] 9.Be3 is more advanced technology.} Nxd7 {[%emt 0:00:28]} 10. e4 {[%emt 0:02:06]} dxc4 {[%emt 0:03:51]} 11. Qe2 $146 {[%emt 0:04:01]} ({Predecessor:} 11. a4 e5 12. d5 Nc5 13. Be3 Nb3 14. Rb1 Bc5 15. Bxc5 Nxc5 16. Qe2 Nb3 17. Rfd1 {0-1 Vetokhin,S (2312)-Petkov,M (2411) Wch Blitz Almaty 2022 (18)}) 11... b5 {[%emt 0:05:11]} 12. e5 {[%emt 0:02:22]} b4 {[%emt 0:25:47]} 13. Ne4 {[%emt 0:02:43]} Nb6 {[%emt 0:01:45]} 14. Rd1 {[%emt 0:00:47]} Ra7 {[%emt 0:06:15]} 15. h4 {[%emt 0:16:13]} Ba6 {[%emt 0:11:21]} 16. Qg4 {[%emt 0:01:15]} Kh8 {[%emt 0:01:11]} 17. Bg5 {[%emt 0:04:20]} Nd5 {[%emt 0:00:57]} 18. Bf1 {[%emt 0:03:51]} f5 {[%emt 0:05:27]} 19. exf6 {[%emt 0:00:50]} gxf6 {[%emt 0:00:05]} 20. Bh6 {[%emt 0:03:11]} Rg8 {[%emt 0:00:09]} 21. Qf3 {[%emt 0:00:58]} Qe8 {[%emt 0:04:55]} 22. h5 {[%emt 0:03:32]} f5 {[%emt 0:04:33]} 23. Nd2 {[%emt 0:07:41]} c3 {[%emt 0:01:42]} 24. bxc3 {[%emt 0:00:47]} bxc3 {[%emt 0:03:25]} (24... Bxf1 $17 25. c4 Nf6 26. Nxf1 Qxh5 27. Qxh5 Nxh5) 25. Bxa6 $1 $15 {[%emt 0:00:53]} Rxa6 {[%emt 0:01:09]} 26. Nc4 {[%emt 0:01:33]} Bf6 {[%emt 0:00:33]} (26... Bg5 $17 27. Bxg5 Rxg5) 27. Rac1 $11 {[%emt 0:01:46]} Rg4 {[%emt 0:05:01]} 28. Ne3 $1 {[%emt 0:02:28]} Qxh5 {[%emt 0:01:58]} (28... Rxd4 $2 {loses.} 29. Rxd4 Bxd4 30. Nxd5 $18) 29. Nxd5 {[%emt 0:16:03]} cxd5 {[%emt 0:01:38]} 30. Bf4 {[%emt 0:00:47]} Rc6 {[%emt 0:01:14]} 31. Kg2 {[%emt 0:01:40]} c2 {[%emt 0:03:33]} 32. Rd2 {[%emt 0:00:50]} Qe8 {[%emt 0:00:20]} 33. Rdxc2 {[%emt 0:01:36]} Rxc2 {[%emt 0:00:06]} 34. Rxc2 {[%emt 0:00:02]} Bxd4 {[%emt 0:01:20]} 35. Qd3 {[%emt 0:01:29]} (35. Rc7 Rg7 36. Rc1 Bf6 $15) 35... Bf6 {[%emt 0:02:00]} 36. Qa6 {[%emt 0:00:09]} Rg8 {[%emt 0:00:16] [#]} 37. Re2 $1 {[%emt 0:01:23]} ({Reject} 37. Qxa5 $6 e5 38. Qa6 Bg7 $15) 37... Bg7 {[%emt 0:00:39]} 38. Rxe6 {[%emt 0:00:47]} ({Much worse is} 38. Qxa5 $6 d4 $11) 38... Qa8 {[%emt 0:00:42] [#]} 39. Be5 {[%emt 0:02:55]} (39. Qb5 $1 $16) 39... d4+ {[%emt 0:01:02]} (39... Qxa6 {simplifies} 40. Bxg7+ Kxg7 41. Rxa6 d4) 40. Qxa8 {[%emt 0:00:14]} Rxa8 {[%emt 0:00:02]} 41. Bxg7+ {[%emt 0:00:30]} Kxg7 {[%emt 0:00:02]} 42. Rd6 {[%emt 0:00:08]} Rc8 {[%emt 0:01:54]} 43. Rxd4 {[%emt 0:00:07]} Rc5 {[%emt 0:00:30]} 44. a4 {[%emt 0:02:00]} Kf6 {[%emt 0:00:10]} 45. Rh4 {[%emt 0:01:29]} Kg6 {[%emt 0:00:32]} 46. Rd4 {[%emt 0:00:07]} Kf6 {[%emt 0:00:07]} 47. Rh4 {[%emt 0:00:04]} Kg6 {[%emt 0:00:34]} 48. Rd4 {[%emt 0:00:04]} Kg5 {[%emt 0:01:06]} 49. Rh4 {[%emt 0:02:21]} h6 {[%emt 0:00:04]} 50. Rd4 {[%emt 0:00:15]} h5 {[%emt 0:00:57]} 51. Rd6 {[%emt 0:02:34]} h4 {[%emt 0:00:20]} 52. gxh4+ {[%emt 0:01:23]} Kxh4 {[%emt 0:00:04]} 53. Rd4+ $1 {[%emt 0:02:17]} Kg5 {[%emt 0:00:04]} 54. Kg3 {[%emt 0:00:28]} Rc3+ {[%emt 0:00:55]} 55. f3 {[%emt 0:00:17]} Ra3 {[%emt 0:00:55]} 56. Rc4 {[%emt 0:00:45]} Ra1 {[%emt 0:00:19]} 57. Rd4 $1 {[%emt 0:01:11]} Ra2 {[%emt 0:00:22]} 58. Rc4 {[%emt 0:00:17]} Ra3 {[%emt 0:00:06]} 59. Rd4 {[%emt 0:00:30]} Ra1 {[%emt 0:01:03]} 60. Rc4 {[%emt 0:00:04]} Ra3 {[%emt 0:00:23]} 61. Rd4 {[%emt 0:00:04]} Ra1 {[%emt 0:00:12]} 62. Rc4 {[%emt 0:00:08]} Ra3 {[%emt 0:00:00]} 63. Rd4 {[%emt 0:00:03]} Ra1 {[%emt 0:00:00]} 64. Rc4 {[%emt 0:00:24]} 1/2-1/2